fUST/lending_fUST_20251226
["ID","MTS","AMOUNT","RATE_DAILY","PERIOD"]
[399802260,1766685037022,-157.027258,0.00016438,2]
[399802261,1766685037033,-157.027258,0.00016438,2]
[399802262,1766685037043,-157.02726,0.00016438,2]
[399802263,1766685037054,-190.941015,0.00016438,2]
[399802264,1766685037064,-190.941015,0.00016438,2]
[399802265,1766685037074,-190.941015,0.00016438,2]
[399802266,1766685037084,-190.941015,0.00016438,2]
[399802267,1766685037095,-190.941015,0.00016438,2]
[399802268,1766685037106,-190.941015,0.00016438,2]
[399802269,1766685037117,-190.941015,0.00016438,2]
[399802270,1766685037127,-190.941015,0.00016438,2]
[399802271,1766685037137,-190.941015,0.00016438,2]
[399802272,1766685037148,-190.941015,0.00016438,2]
[399802273,1766685037158,-190.941015,0.00016438,2]
[399802274,1766685037169,-190.941015,0.00016438,2]
[399802275,1766685037179,-190.941015,0.00016438,2]
[399802276,1766685037190,-190.941015,0.00016438,2]
[399802277,1766685037200,-190.941015,0.00016438,2]
[399802278,1766685037210,-190.941015,0.00016438,2]
[399802279,1766685037221,-190.941015,0.00016438,2]
[399802280,1766685037231,-190.941015,0.00016438,2]
[399802281,1766685037241,-190.941015,0.00016438,2]
[399802282,1766685037252,-190.941009,0.00016438,2]
[399802283,1766685037263,-163.82697109,0.00016438,2]
[399802284,1766685037273,-600.0,0.00016438,2]
[399802285,1766685037284,-3000.0,0.00016438,2]
[399802286,1766685037295,-3000.0,0.00016438,2]
[399802287,1766685037308,-259.50409295,0.00016438,2]
[399802288,1766685037322,-182.74,0.0001644,2]
[399802289,1766685037332,-182.74,0.0001644,2]
[399802290,1766685037343,-182.74,0.0001644,2]
[399802291,1766685037354,-182.74,0.0001644,2]
[399802292,1766685037364,-200.0,0.00016473,2]
[399802293,1766685037375,-151.0,0.000165,2]
[399802294,1766685037386,-5000.0,0.0001652,2]
[399802295,1766685037397,-3500.0,0.0001656,2]
[399802296,1766685037407,-3500.0,0.0001656,2]
[399802297,1766685037418,-3500.0,0.0001656,2]
[399802298,1766685037428,-549.0,0.00016575,2]
[399802299,1766685037439,-549.0,0.00016712,2]
[399802300,1766685037449,-980.8,0.00016712,2]
[399802301,1766685037460,-271.0,0.0001674,3]
[399802302,1766685037471,-2000.0,0.00016821,7]
[399802303,1766685037481,-549.0,0.00016849,2]
[399802304,1766685037491,-1841.0505154,0.000169,2]
[399802305,1766685037502,-292.78,0.000169,2]
[399802306,1766685037514,-2100.0,0.0001696,2]
[399802307,1766685037524,-36156.55304166,0.0001698,2]
[399802308,1766685037604,-500.0,0.00010959,2]
[399802309,1766685037615,-8391.02650953,0.0001698,2]
[399802310,1766685037666,-682.96239191,0.0001698,2]
[399802326,1766685038832,-500.0,6.329e-05,2]
[399802327,1766685038843,-500.0,6.329e-05,2]
[399802328,1766685038854,-256.57902813,6.329e-05,2]
[399802329,1766685038866,-500.0,6.329e-05,2]
[399802330,1766685038878,-183.72039019,6.329e-05,2]
[399802331,1766685038891,-316.27960981,6.329e-05,2]
[399802332,1766685038903,-500.0,6.329e-05,2]
[399802333,1766685038914,-293.82311071,6.329e-05,2]
[399802334,1766685038928,-183.49794497,6.329e-05,2]
[399802335,1766685038940,-273.40160844,6.329e-05,2]
[399802336,1766685038951,-500.0,6.329e-05,2]
[399802337,1766685038963,-500.0,6.329e-05,2]
[399802338,1766685038974,-500.0,6.329e-05,2]
[399802339,1766685038986,-500.0,6.329e-05,2]
[399802340,1766685038997,-500.0,6.329e-05,2]
[399802341,1766685039008,-500.0,6.329e-05,2]
[399802342,1766685039019,-500.0,6.329e-05,2]
[399802343,1766685039030,-500.0,6.329e-05,2]
[399802344,1766685039041,-500.0,6.329e-05,2]
[399802345,1766685039052,-500.0,6.329e-05,2]
[399802346,1766685039064,-500.0,6.329e-05,2]
[399802347,1766685039076,-174.96427082,6.329e-05,2]
[399802348,1766685039088,-500.0,6.329e-05,2]
[399802349,1766685039099,-500.0,6.329e-05,2]
[399802350,1766685039112,-500.0,6.329e-05,2]
[399802351,1766685039125,-500.0,6.329e-05,2]
[399802352,1766685039137,-500.0,6.329e-05,2]
[399802353,1766685039384,-500.0,6.329e-05,2]
[399802354,1766685039412,-500.0,6.329e-05,2]
[399802355,1766685039423,-500.0,6.329e-05,2]
[399802356,1766685039433,-500.0,6.329e-05,2]
[399802357,1766685039443,-500.0,6.329e-05,2]
[399802358,1766685039453,-500.0,6.329e-05,2]
[399802359,1766685039463,-500.0,6.329e-05,2]
[399802360,1766685039474,-500.0,6.329e-05,2]
[399802361,1766685039484,-500.0,0.00016438,2]
[399802362,1766685039495,-500.0,0.00016438,2]
[399802363,1766685039506,-500.0,0.00016438,2]
[399802364,1766685039517,-500.0,0.00016438,2]
[399802365,1766685039527,-592.35859104,0.00016438,2]
[399802366,1766685039536,-500.0,0.00016438,2]
[399802367,1766685039546,-500.0,0.00016438,2]
[399802368,1766685039556,-500.0,0.00016438,2]
[399802369,1766685039565,-500.0,0.00016438,2]
[399802370,1766685039577,-500.0,0.00016438,2]
[399802371,1766685039586,-500.0,0.00016438,2]
[399802372,1766685039596,-500.0,0.00016438,2]
[399802373,1766685039606,-500.0,0.00016438,2]
[399802374,1766685039616,-500.0,0.00016438,2]
[399802375,1766685039625,-500.0,0.00016438,2]
[399802376,1766685039635,-500.0,0.00016438,2]
[399802377,1766685039645,-500.0,0.00016438,2]
[399802378,1766685039655,-550.71955943,0.00016438,2]
[399802379,1766685039664,-500.0,0.00016438,2]
[399802380,1766685039674,-500.0,0.00016438,2]
[399802381,1766685039684,-500.0,0.00016438,2]
[399802382,1766685039694,-500.0,0.00016438,2]
[399802383,1766685039705,-500.0,0.00016438,2]
[399802384,1766685039715,-500.0,0.00016438,2]
[399802385,1766685039724,-500.0,0.00016438,2]
[399802386,1766685039735,-500.0,0.00016438,2]
[399802387,1766685039745,-500.0,0.00016438,2]
[399802388,1766685039754,-500.0,0.00016438,2]
[399802389,1766685039765,-500.0,0.00016438,2]
[399802390,1766685039775,-500.0,0.00016438,2]
[399802391,1766685039785,-500.0,0.00016438,2]
[399802392,1766685039795,-500.0,0.00016438,2]
[399802393,1766685039806,-500.0,0.00016438,2]
[399802394,1766685039815,-500.0,0.00016438,2]
[399802395,1766685039826,-500.0,0.00016438,2]
[399802396,1766685039836,-500.0,0.00016438,2]
[399802397,1766685039846,-500.0,0.00016438,2]
[399802398,1766685039857,-500.0,0.00016438,2]
[399802399,1766685039869,-500.0,0.00016438,2]
[399802400,1766685039880,-500.0,0.00016438,2]
[399802401,1766685039891,-500.0,0.00016438,2]
[399802402,1766685039901,-500.0,0.00016438,2]
[399802403,1766685039911,-500.0,0.00016438,2]
[399802404,1766685039922,-500.0,0.00016438,2]
[399802405,1766685039932,-500.0,0.00016438,2]
[399802406,1766685039942,-500.0,0.00016438,2]
[399802407,1766685039951,-500.0,0.00016438,2]
[399802408,1766685039961,-500.0,0.00016438,2]
[399802409,1766685039971,-500.0,0.00016438,2]
[399802410,1766685039982,-500.0,0.00016438,2]
[399802411,1766685039991,-500.0,0.00016438,2]
[399802412,1766685040001,-500.0,0.00016438,2]
[399802413,1766685040012,-500.0,0.00016438,2]
[399802414,1766685040023,-37229.93944667,0.0001698,2]
[399802415,1766685040034,-549.0,0.00016986,2]
[399802416,1766685040045,-980.8,0.00016986,2]
[399802417,1766685040056,-760.0,0.00016986,2]
[399802418,1766685040067,-3500.0,0.00016986,2]
[399802419,1766685040079,-3500.0,0.00016986,2]
[399802420,1766685040091,-102748.34020182,0.00017,2]
[399802421,1766685040101,-8461.21452061,0.00017,2]
[399802422,1766685040114,-908.05046056,0.00017108,2]
[399802423,1766685040124,-4000.0,0.00017108,2]
[399802424,1766685040134,-4000.0,0.00017108,2]
[399802425,1766685040145,-549.0,0.00017123,2]
[399802426,1766685040155,-1841.05051532,0.00017142,2]
[399802427,1766685040165,-277.0,0.00017172,2]
[399802428,1766685040175,-549.0,0.0001726,2]
[399802429,1766685040185,-980.8,0.0001726,2]
[399802430,1766685040196,-2400.0,0.0001726,2]
[399802431,1766685040206,-591.40590534,0.00017275,7]
[399802432,1766685040220,-1408.59409466,0.00017275,7]
[399802433,1766685040235,-336.0,0.00017316,2]
[399802434,1766685040245,-1841.05051532,0.00017384,2]
[399802435,1766685040255,-549.0,0.00017397,2]
[399802436,1766685040265,-1978.452259,0.000175,2]
[399802437,1766685040275,-292.78,0.000175,2]
[399802439,1766685040285,-410.0,0.00017502,2]
[399802441,1766685040295,-2400.0,0.00017508,2]
[399802444,1766685040306,-59.9476972,0.00017534,2]
[399802504,1766685040813,-489.0523028,0.00017534,2]
[399802506,1766685040823,-980.8,0.00017534,2]
[399802508,1766685040833,-765.8227936,0.00017534,2]
[399802811,1766685043852,-94.1772064,0.00017534,2]
[399802813,1766685043862,-156.8227936,0.00017534,2]
[399802818,1766685043906,-3843.1772064,0.00017534,2]
[399802820,1766685043916,-4000.0,0.00017534,2]
[399802822,1766685043926,-16.90726448,0.000176,2]
[399803074,1766685046703,-1146.57150981,0.000176,2]
[399803086,1766685046810,-968.34126558,0.000176,2]
[399803088,1766685046820,-1841.05051532,0.00017626,2]
[399803090,1766685046830,-4500.0,0.00017656,2]
[399803092,1766685046839,-4500.0,0.00017656,2]
[399803093,1766685046849,-549.0,0.00017671,2]
[399803095,1766685046858,-2000.0,0.00017729,7]
[399803097,1766685046868,-221.28,0.0001779,3]
[399803099,1766685046878,-3412.67120402,0.000178,3]
[399803558,1766686232037,-5000.0,4.876e-05,2]
[399803559,1766686232048,-150.0,4.901e-05,2]
[399803560,1766686232059,-165.77,5e-05,2]
[399803561,1766686232070,-304.1,5.135e-05,2]
[399803562,1766686232086,-608.2,5.379e-05,2]
[399803563,1766686232096,-165.77,5.6e-05,2]
[399803564,1766686232108,-607.07133211,5.624e-05,2]
[399803565,1766686232125,-305.22866789,5.624e-05,2]
[399803566,1766686232135,-1200.0,5.747e-05,2]
[399803567,1766686232146,-300.0,5.867e-05,2]
[399803568,1766686232157,-300.0,5.867e-05,2]
[399803569,1766686232167,-300.0,5.867e-05,2]
[399803570,1766686232177,-300.0,5.867e-05,2]
[399803571,1766686232188,-1216.4,5.868e-05,2]
[399803572,1766686232198,-1200.0,5.868e-05,2]
[399803573,1766686232209,-165.77,6.1e-05,2]
[399803574,1766686232219,-1520.51,6.113e-05,2]
[399803575,1766686232229,-1824.61,6.357e-05,2]
[399803576,1766686232239,-2128.71,6.602e-05,2]
[399803577,1766686232250,-165.77,6.7e-05,2]
[399803578,1766686232260,-2432.81,6.846e-05,2]
[399803579,1766686232282,-177.0,6.901e-05,2]
[399803580,1766686232294,-305.77,6.976e-05,2]
[399803581,1766686232305,-2736.91,7.091e-05,2]
[399803582,1766686232315,-305.77,7.25e-05,2]
[399803583,1766686232326,-165.77,7.3e-05,2]
[399803584,1766686232336,-3041.01,7.335e-05,2]
[399803585,1766686232347,-305.78,7.524e-05,2]
[399803586,1766686232357,-165.77,7.8e-05,2]
[399803587,1766686232368,-228.07,8.3e-05,2]
[399803588,1766686232378,-165.77,8.4e-05,2]
[399803589,1766686232388,-204.0,8.901e-05,2]
[399803590,1766686232407,-165.77,9e-05,2]
[399803591,1766686232418,-12437.8332008,9.276e-05,2]
[399803592,1766686232429,-165.77,9.6e-05,2]
[399803593,1766686232439,-165.77,0.000101,2]
[399803594,1766686232449,-165.77,0.000107,2]
[399803595,1766686232459,-231.0,0.00010901,2]
[399803596,1766686232470,-500.0,0.00010958,2]
[399803597,1766686232480,-500.0,0.00010958,2]
[399803598,1766686232490,-500.0,0.00010958,2]
[399803599,1766686232501,-500.0,0.00010958,2]
[399803600,1766686232511,-500.0,0.00010958,2]
[399803601,1766686232521,-500.0,0.00010958,2]
[399803602,1766686232531,-500.0,0.00010958,2]
[399803603,1766686232541,-500.0,0.00010958,2]
[399803604,1766686232551,-500.0,0.00010958,2]
[399803605,1766686232562,-500.0,0.00010958,2]
[399803606,1766686232572,-6464.2398259,0.00010959,2]
[399803607,1766686232582,-999.0,0.00010959,2]
[399803608,1766686232592,-165.77,0.000113,2]
[399803609,1766686232603,-165.77,0.000118,2]
[399803610,1766686232617,-320.92,0.00012329,2]
[399803611,1766686232628,-267.43,0.00012329,2]
[399803612,1766686232639,-160.0,0.00012362,2]
[399803613,1766686232648,-1041.66666667,0.00012362,2]
[399803614,1766686232659,-165.77,0.000124,2]
[399803615,1766686232679,-108812.12063379,0.0001287,2]
[399803616,1766686232692,-1016.72874072,0.0001287,2]
[399803619,1766686237845,-446.03775753,0.0001287,2]
[399803620,1766686237859,-455.70417096,0.0001287,2]
[399803621,1766686237871,-94753.84009259,0.0001287,2]
[399803622,1766686237884,-554.58286843,0.0001287,2]
[399803623,1766686237897,-1316.91553916,0.0001287,2]
[399803624,1766686237909,-1382.8095471,0.0001287,2]
[399803625,1766686237922,-15324.73589633,0.0001287,2]
[399803626,1766686237935,-4897.25569245,0.0001287,2]
[399803627,1766686237947,-302.0,0.0001287,2]
[399803628,1766686237960,-8502.1097851,0.0001287,2]
[399803629,1766686237972,-890.79079948,0.0001287,2]
[399803630,1766686237985,-532453.78987837,0.0001287,2]
[399803631,1766686237995,-167.0,0.00012877,3]
[399803632,1766686238005,-165.77,0.00013,2]
[399803633,1766686238016,-500.0,0.00013273,2]
[399803634,1766686238027,-500.0,0.00013273,2]
[399803635,1766686238037,-213.0,0.00013425,3]
[399803636,1766686238048,-165.77,0.000135,2]
[399803637,1766686238058,-300.0,0.00013673,2]
[399803638,1766686238069,-200.0,0.00013699,2]
[399803639,1766686238080,-500.0,0.00013699,2]
[399803640,1766686238090,-500.0,0.00013699,2]
[399803641,1766686238101,-2000.0,0.00013699,7]
[399803642,1766686238112,-160.0,0.00013699,2]
[399803643,1766686238123,-1000.0,0.00013821,2]
[399803644,1766686238133,-1000.0,0.00013821,2]
[399803645,1766686238143,-162.0,0.00013821,2]
[399803646,1766686238154,-165.77,0.000141,2]
[399803647,1766686238164,-600.0,0.00014221,2]
[399803648,1766686238175,-250.0,0.00014233,2]
[399803649,1766686238186,-1363.0,0.00014233,2]
[399803650,1766686238196,-633.0,0.00014233,2]
[399803651,1766686238207,-500.0,0.00014244,2]
[399803652,1766686238217,-1000.0,0.00014247,2]
[399803653,1766686238227,-1000.0,0.00014247,2]
[399803654,1766686238238,-260.0,0.00014247,2]
[399803655,1766686238248,-4466.0,0.00014325,2]
[399803656,1766686238259,-1500.0,0.00014368,2]
[399803657,1766686238270,-1500.0,0.00014368,2]
[399803658,1766686238280,-214.0,0.00014521,3]
[399803659,1766686238291,-165.77,0.000147,2]
[399803660,1766686238302,-900.0,0.00014768,2]
[399803661,1766686238313,-1500.0,0.00014795,2]
[399803662,1766686238324,-1500.0,0.00014795,2]
[399803663,1766686238335,-360.0,0.00014795,2]
[399803664,1766686238346,-302.26209652,0.000149,2]
[399803665,1766686238357,-302.26209652,0.000149,2]
[399803666,1766686238368,-302.26209652,0.000149,2]
[399803667,1766686238380,-500.0,0.00014916,2]
[399803668,1766686238391,-2000.0,0.00014916,2]
[399803669,1766686238401,-2000.0,0.00014916,2]
[399803670,1766686238412,-1000.0,0.00015,2]
[399803671,1766686238424,-400.0,0.00015068,2]
[399803672,1766686238435,-800.0,0.00015068,2]
[399803673,1766686238446,-100000.0,0.00015174,2]
[399803674,1766686238457,-165.77,0.000152,2]
[399803675,1766686238468,-2000.0,0.00015274,7]
[399803676,1766686238479,-1293.64979072,0.00015316,2]
[399803677,1766686238490,-460.0,0.00015342,2]
[399803678,1766686238502,-2000.0,0.00015342,2]
[399803679,1766686238514,-2000.0,0.00015342,2]
[399803680,1766686238525,-2500.0,0.00015464,2]
[399803681,1766686238536,-2500.0,0.00015464,2]
[399803682,1766686238547,-216.0,0.00015616,3]
[399803683,1766686238559,-165.77,0.000158,2]
[399803684,1766686238571,-500.0,0.0001589,2]
[399803685,1766686238582,-560.0,0.0001589,2]
[399803686,1766686238592,-2500.0,0.0001589,2]
[399803687,1766686238604,-2500.0,0.0001589,2]
[399803688,1766686238622,-500.0,0.00015989,2]
[399803689,1766686238633,-500.0,0.00015989,2]
[399803690,1766686238643,-500.0,0.00015989,2]
[399803691,1766686238655,-500.0,0.00015989,2]
[399803692,1766686238667,-500.0,0.00015989,2]
[399803693,1766686238679,-150.0,0.00016,2]
[399803694,1766686238690,-2920.70420138,0.00016012,2]
[399803695,1766686238701,-3000.0,0.00016012,2]
[399803696,1766686238711,-1600.0,0.00016164,2]
[399803697,1766686238723,-165.77,0.000164,2]
[399803698,1766686238734,-500.0,0.00016437,2]
[399803699,1766686238746,-500.0,0.00016437,2]
[399803700,1766686238757,-500.0,0.00016437,2]
[399803701,1766686239027,-500.0,0.00016437,2]
[399803702,1766686239042,-577.3,0.00016437,2]
[399803703,1766686239052,-356.35296027,0.00016438,2]
[399803704,1766686239063,-224.44153571,0.00016438,2]
[399803705,1766686239072,-641.43532849,0.00016438,2]
[399803706,1766686239083,-572.1,0.00016438,2]
[399803707,1766686239093,-660.0,0.00016438,2]
[399803708,1766686239103,-600.0,0.00016438,2]
[399803709,1766686239113,-3000.0,0.00016438,2]
[399803710,1766686239125,-3000.0,0.00016438,2]
[399803711,1766686239135,-200.0,0.00016473,2]
[399803712,1766686239146,-3500.0,0.0001656,2]
[399803713,1766686239156,-1140.32947287,0.00016641,2]
[399803715,1766686239167,-572.1,0.00016712,2]
[399803717,1766686239178,-218.0,0.00016712,3]
[399803719,1766686239188,-596.43936351,0.00016849,7]
[399803746,1766686239868,-272.33990001,0.00016849,7]
[399803748,1766686239880,-841.52588397,0.00016849,7]
[399803751,1766686239898,-289.69485251,0.00016849,7]
[399803753,1766686239907,-403.99476429,0.00016881,2]
[399803755,1766686239918,-165.77,0.000169,2]
[399803757,1766686239927,-572.1,0.00016986,2]
[399803759,1766686239937,-760.0,0.00016986,2]
[399803761,1766686239946,-1398.62911707,0.00016986,2]
[399803763,1766686239958,-825.6962295,0.00016986,2]
[399803765,1766686239970,-1275.67465343,0.00016986,2]
[399803767,1766686239980,-277.50084064,0.00016986,2]
[399803770,1766686239992,-3222.49915936,0.00016986,2]
[399803772,1766686240002,-320.0,0.00017017,2]
[399803774,1766686240011,-1131.5211887,0.00017105,2]
[399803775,1766686240021,-1669.6850594,0.00017105,2]
[399803778,1766686240031,-6671.8173865,0.00017105,2]
[399803779,1766686240041,-4000.0,0.00017108,2]
[399803781,1766686240051,-178.733,0.00017142,2]
[399803784,1766686240061,-392.0,0.00017156,2]
[399803785,1766686240070,-150.0,0.00017233,2]
[399803788,1766686240080,-278.32380787,0.0001726,2]
[399803790,1766686240092,-254.01130894,0.0001726,2]
[399804074,1766686243092,-39.76488319,0.0001726,2]
[399804076,1766686243103,-284.56295933,0.0001726,2]
[399804079,1766686243114,-466.0,0.00017315,2]
[399804081,1766686243125,-878.28040611,0.00017318,2]
[399804083,1766686243136,-500.0,0.00017397,2]
[399804085,1766686243147,-2440.23427299,0.00017403,2]
[399804087,1766686243158,-1371.48995352,0.00017425,2]
[399804371,1766686245848,-410.27484784,0.00017425,2]
[399804373,1766686245859,-165.77,0.000175,2]
[399804375,1766686245871,-226.80360209,0.00017534,2]
[399804378,1766686245883,-273.19639791,0.00017534,2]
[399804380,1766686245894,-572.1,0.00017534,2]
[399804382,1766686245905,-860.0,0.00017534,2]
[399804384,1766686245915,-1408.51438887,0.00017534,2]
[399804386,1766686245929,-2591.48561113,0.00017534,2]
[399804388,1766686245940,-4000.0,0.00017534,2]
[399804390,1766686245951,-338.2114975,0.00017605,2]
[399804392,1766686245961,-256.9514442,0.00017619,2]
[399804394,1766686245971,-4500.0,0.00017656,2]
[399804396,1766686245982,-500.0,0.00017671,2]
[399804398,1766686245992,-1000.0,0.00017671,2]
[399804400,1766686246003,-1000.0,0.00017671,2]
[399804402,1766686246013,-1000.0,0.00017671,2]
[399804404,1766686246023,-1000.0,0.00017671,2]
[399804406,1766686246034,-386.71975285,0.00017671,2]
[399804408,1766686246044,-554.0,0.00017788,3]
[399804410,1766686246054,-222.86,0.0001779,3]
[399804412,1766686246065,-500.0,0.00017799,3]
[399804415,1766686246082,-500.0,0.00017799,3]
[399804417,1766686246093,-500.0,0.00017799,3]
[399804419,1766686246103,-500.0,0.00017799,3]
[399804421,1766686246115,-478.75725327,0.00017799,3]
[399804423,1766686246126,-500.0,0.00017799,3]
[399804425,1766686246137,-496.47127164,0.00017799,3]
[399804427,1766686246148,-500.0,0.00017799,3]
[399804429,1766686246159,-514.84070869,0.00017799,3]
[399804432,1766686246170,-500.0,0.00017799,3]
[399804434,1766686246181,-171.59287575,0.00017799,3]
[399804436,1766686246191,-151.0,0.00017799,3]
[399804438,1766686246202,-151.0,0.00017799,3]
[399804440,1766686246212,-151.0,0.00017799,3]
[399804442,1766686246222,-151.0,0.00017799,3]
[399804443,1766686246233,-151.0,0.00017799,3]
[399804446,1766686246245,-151.0,0.00017799,3]
[399804448,1766686246256,-151.0,0.00017799,3]
[399804450,1766686246269,-151.0,0.00017799,3]
[399804452,1766686246280,-151.0,0.00017799,3]
[399804454,1766686246291,-151.0,0.00017799,3]
[399804456,1766686246303,-151.0,0.00017799,3]
[399804458,1766686246313,-151.0,0.00017799,3]
[399804460,1766686246323,-151.0,0.00017799,3]
[399804462,1766686246334,-14856.37672782,0.000178,3]
[399804883,1766686302315,500.0,0.000328,120]
[399804884,1766686386994,1300.0,0.000328,120]
[399804885,1766686435194,500.0,0.000328,120]
[399804886,1766686814498,290.381928,0.00030137,120]
[399804887,1766686855674,5000.0,6e-05,10]
[399804889,1766686879468,5000.0,6e-05,10]
[399804891,1766686902876,5000.0,6e-05,10]
[399804910,1766687068433,1900.00000077,0.00032877,120]
[399804947,1766687431781,-207.23788017,4.955e-05,2]
[399804948,1766687431792,-150.0,4.978e-05,2]
[399804949,1766687431802,-154.34,5e-05,2]
[399804950,1766687431812,-150.0,5.334e-05,2]
[399804951,1766687431821,-190.1,5.588e-05,2]
[399804952,1766687431831,-285.15,5.842e-05,2]
[399804953,1766687431841,-1300.7295817,5.908e-05,2]
[399804954,1766687431850,-154.34,6e-05,2]
[399804955,1766687431860,-380.19,6.096e-05,2]
[399804956,1766687431870,-250.0,6.179e-05,2]
[399804957,1766687431879,-475.24,6.35e-05,2]
[399804959,1766687431889,-570.29,6.604e-05,2]
[399804961,1766687431899,-300.0,6.604e-05,2]
[399804963,1766687431909,-300.0,6.604e-05,2]
[399804965,1766687431919,-277.0,6.604e-05,2]
[399804966,1766687431928,-300.0,6.604e-05,2]
[399804967,1766687431938,-1200.0,6.604e-05,2]
[399804968,1766687431948,-37291.10147945,6.605e-05,2]
[399804969,1766687431960,-2588.15353375,6.605e-05,2]
[399804970,1766687431971,-1326.0,6.605e-05,2]
[399804971,1766687431987,-8794.7449868,6.605e-05,2]
[399804972,1766687431996,-225.12014274,6.606e-05,2]
[399804973,1766687432007,-500.0,6.606e-05,2]
[399804975,1766687432017,-500.0,6.606e-05,2]
[399804977,1766687432027,-500.0,6.606e-05,2]
[399804979,1766687432037,-500.0,6.606e-05,2]
[399804980,1766687432047,-184.04846268,6.606e-05,2]
[399804982,1766687432057,-500.0,6.606e-05,2]
[399804984,1766687432066,-500.0,6.606e-05,2]
[399804986,1766687432076,-500.0,6.606e-05,2]
[399804988,1766687432086,-500.0,6.606e-05,2]
[399804989,1766687432096,-500.0,6.606e-05,2]
[399804990,1766687432106,-500.0,6.606e-05,2]
[399804991,1766687432116,-500.0,6.606e-05,2]
[399804992,1766687432126,-454.61073366,6.606e-05,2]
[399804994,1766687432135,-500.0,6.606e-05,2]
[399804995,1766687432145,-500.0,6.606e-05,2]
[399804997,1766687432155,-500.0,6.606e-05,2]
[399804999,1766687432165,-500.0,6.606e-05,2]
[399805001,1766687432175,-500.0,6.606e-05,2]
[399805003,1766687432186,-221.01026509,6.606e-05,2]
[399805005,1766687432196,-500.0,6.606e-05,2]
[399805007,1766687432206,-500.0,6.606e-05,2]
[399805009,1766687432216,-500.0,6.606e-05,2]
[399805011,1766687432226,-500.0,6.606e-05,2]
[399805012,1766687432235,-339.24131701,6.606e-05,2]
[399805013,1766687432246,-500.0,6.606e-05,2]
[399805015,1766687432256,-500.0,6.606e-05,2]
[399805017,1766687432267,-386.91956329,6.606e-05,2]
[399805019,1766687432282,-500.0,6.606e-05,2]
[399805021,1766687432291,-500.0,6.606e-05,2]
[399805023,1766687432304,-500.0,6.606e-05,2]
[399805025,1766687432315,-500.0,6.606e-05,2]
[399805027,1766687432324,-500.0,6.606e-05,2]
[399805029,1766687432335,-500.0,6.606e-05,2]
[399805031,1766687432345,-500.0,6.606e-05,2]
[399805032,1766687432355,-440.90762382,6.606e-05,2]
[399805033,1766687432365,-500.0,6.606e-05,2]
[399805034,1766687432375,-500.0,6.606e-05,2]
[399805035,1766687432384,-2904.11786783,6.606e-05,2]
[399805036,1766687432395,-500.0,6.606e-05,2]
[399805037,1766687432405,-500.0,6.606e-05,2]
[399805038,1766687432415,-2904.11786783,6.606e-05,2]
[399805039,1766687432424,-500.0,6.606e-05,2]
[399805040,1766687432434,-2904.11786783,6.606e-05,2]
[399805041,1766687432444,-2904.11786783,6.606e-05,2]
[399805042,1766687432454,-500.0,6.606e-05,2]
[399805043,1766687432464,-2904.11786783,6.606e-05,2]
[399805044,1766687432473,-500.0,6.606e-05,2]
[399805045,1766687432484,-2904.11786783,6.606e-05,2]
[399805046,1766687432493,-375.82203061,6.606e-05,2]
[399805047,1766687432506,-997.14197923,6.606e-05,2]
[399805054,1766687437930,-1531.15385799,6.606e-05,2]
[399805055,1766687437940,-500.0,6.606e-05,2]
[399805056,1766687437951,-2904.11786783,6.606e-05,2]
[399805057,1766687437961,-500.0,6.606e-05,2]
[399805058,1766687437971,-37.98757202,6.606e-05,2]
[399805059,1766687437983,-1623.47369543,6.606e-05,2]